[Event "Open NK Rapid 2025 bord 26-50"]
[Site "Helmond, Netherlands"]
[Date "2025.05.03"]
[Round "7.14"]
[White "Koppenens, Oscar"]
[Black "Becx, Cesar"]
[Result "1-0"]
[TimeControl "15 min +5 sec increment"]
[WhiteFideId "1087940"]
[BlackFideId "1001183"]
[WhiteElo "1858"]
[BlackElo "2075"]

1. e4 {[%clk 00:15:08]} {[%emt 00:00:02]} e5 {[%clk 00:15:08]} {[%emt
00:00:02]} 2. Nf3 {[%clk 00:15:11]} {[%emt 00:00:02]} Nc6 {[%clk 00:15:12]}
{[%emt 00:00:02]} 3. Bc4 {[%clk 00:15:15]} {[%emt 00:00:01]} Nf6 {[%clk
00:15:13]} {[%emt 00:00:03]} 4. d4 {[%clk 00:15:18]} {[%emt 00:00:02]} exd4
{[%clk 00:15:14]} {[%emt 00:00:04]} 5. O-O {[%clk 00:15:19]} {[%emt 00:00:04]}
Nxe4 {[%clk 00:15:12]} {[%emt 00:00:07]} 6. Nc3 {[%clk 00:15:23]} {[%emt
00:00:01]} d5 {[%clk 00:12:33]} {[%emt 00:02:45]} 7. Bxd5 {[%clk 00:14:26]}
{[%emt 00:01:02]} Nxc3 {[%clk 00:11:26]} {[%emt 00:01:11]} 8. Bxc6+ {[%clk
00:14:29]} {[%emt 00:00:03]} bxc6 {[%clk 00:11:27]} {[%emt 00:00:04]} 9. bxc3
{[%clk 00:14:15]} {[%emt 00:00:18]} Be7 {[%clk 00:09:59]} {[%emt 00:01:34]} 10.
cxd4 {[%clk 00:14:14]} {[%emt 00:00:06]} O-O {[%clk 00:09:56]} {[%emt
00:00:08]} 11. Ne5 {[%clk 00:13:16]} {[%emt 00:01:02]} Bd6 {[%clk 00:06:46]}
{[%emt 00:03:15]} 12. Nxc6 {[%clk 00:12:19]} {[%emt 00:01:02]} Qf6 {[%clk
00:05:38]} {[%emt 00:01:14]} 13. Bb2 {[%clk 00:08:57]} {[%emt 00:03:27]} Bxh2+
{[%clk 00:05:17]} {[%emt 00:00:25]} 14. Kxh2 {[%clk 00:09:00]} {[%emt
00:00:02]} Qxc6 {[%clk 00:05:21]} {[%emt 00:00:02]} 15. d5 {[%clk 00:08:34]}
{[%emt 00:00:30]} Qd6+ {[%clk 00:04:09]} {[%emt 00:01:18]} 16. f4 {[%clk
00:08:24]} {[%emt 00:00:15]} Ba6 {[%clk 00:03:15]} {[%emt 00:00:59]} 17. Rf3
{[%clk 00:08:01]} {[%emt 00:00:27]} f6 {[%clk 00:01:57]} {[%emt 00:01:24]} 18.
Ba3 {[%clk 00:07:39]} {[%emt 00:00:27]} Qd7 {[%clk 00:00:27]} {[%emt 00:01:35]}
19. Bxf8 {[%clk 00:07:41]} {[%emt 00:00:03]} Rxf8 {[%clk 00:00:31]} 20. Qd4
{[%clk 00:07:35]} {[%emt 00:00:10]} Be2 {[%clk 00:00:27]} {[%emt 00:00:10]} 21.
Re3 {[%clk 00:07:26]} {[%emt 00:00:13]} Bh5 {[%clk 00:00:27]} {[%emt 00:00:06]}
22. Rae1 {[%clk 00:07:26]} {[%emt 00:00:04]} Bf7 {[%clk 00:00:20]} {[%emt
00:00:13]} 23. Re7 {[%clk 00:07:26]} {[%emt 00:00:05]} Qf5 {[%clk 00:00:23]}
{[%emt 00:00:02]} 24. Rxc7 {[%clk 00:07:20]} {[%emt 00:00:10]} Bxd5 {[%clk
00:00:13]} {[%emt 00:00:16]} 25. Rc5 {[%clk 00:07:03]} {[%emt 00:00:22]} Rd8
{[%clk 00:00:09]} {[%emt 00:00:08]} 26. Rd1 {[%clk 00:06:53]} {[%emt 00:00:15]}
Qh5+ {[%clk 00:00:09]} {[%emt 00:00:05]} 27. Kg1 {[%clk 00:06:57]} 1-0

[Event "Open NK Rapid 2025 bord 26-50"]
[Site "Helmond, Netherlands"]
[Date "2025.05.03"]
[Round "7.15"]
[White "Neuwald, Johannes"]
[Black "Bakels, Anton"]
[Result "1-0"]
[TimeControl "15 min +5 sec increment"]
[WhiteFideId "34683240"]
[BlackFideId "1046187"]
[WhiteElo "1839"]
[BlackElo "2025"]

1. a3 {[%clk 00:15:07]} {[%emt 00:00:02]} Nf6 {[%clk 00:14:22]} {[%emt
00:00:48]} 2. h3 {[%clk 00:15:09]} {[%emt 00:00:03]} g6 {[%clk 00:14:24]}
{[%emt 00:00:03]} 3. b3 {[%clk 00:15:12]} {[%emt 00:00:02]} Bg7 {[%clk
00:14:28]} {[%emt 00:00:02]} 4. Bb2 {[%clk 00:15:16]} d6 {[%clk 00:14:23]}
{[%emt 00:00:09]} 5. e3 {[%clk 00:15:20]} {[%emt 00:00:02]} O-O {[%clk
00:14:20]} {[%emt 00:00:08]} 6. g3 {[%clk 00:15:21]} {[%emt 00:00:03]} e5
{[%clk 00:14:22]} {[%emt 00:00:03]} 7. Bg2 {[%clk 00:15:24]} {[%emt 00:00:01]}
c5 {[%clk 00:13:40]} {[%emt 00:00:48]} 8. d3 {[%clk 00:15:18]} {[%emt
00:00:11]} Nc6 {[%clk 00:13:39]} {[%emt 00:00:06]} 9. Ne2 {[%clk 00:15:19]}
{[%emt 00:00:04]} Be6 {[%clk 00:13:31]} {[%emt 00:00:13]} 10. Nd2 {[%clk
00:15:22]} {[%emt 00:00:02]} d5 {[%clk 00:13:20]} {[%emt 00:00:17]} 11. g4
{[%clk 00:15:04]} {[%emt 00:00:22]} Ne8 {[%clk 00:12:40]} {[%emt 00:00:45]} 12.
Ng3 {[%clk 00:14:46]} {[%emt 00:00:23]} f5 {[%clk 00:12:00]} {[%emt 00:00:46]}
13. gxf5 {[%clk 00:13:57]} {[%emt 00:00:53]} gxf5 {[%clk 00:11:59]} {[%emt
00:00:06]} 14. Nh5 {[%clk 00:13:24]} {[%emt 00:00:38]} Bh6 {[%clk 00:11:28]}
{[%emt 00:00:36]} 15. Rg1 {[%clk 00:12:54]} {[%emt 00:00:35]} Kh8 {[%clk
00:11:16]} {[%emt 00:00:17]} 16. Nf3 {[%clk 00:11:55]} {[%emt 00:01:04]} d4
{[%clk 00:10:55]} {[%emt 00:00:26]} 17. Qe2 {[%clk 00:11:19]} {[%emt 00:00:41]}
Nf6 {[%clk 00:09:34]} {[%emt 00:01:26]} 18. Nxf6 {[%clk 00:09:19]} {[%emt
00:02:06]} Qxf6 {[%clk 00:09:31]} {[%emt 00:00:08]} 19. O-O-O {[%clk 00:08:27]}
{[%emt 00:00:56]} dxe3 {[%clk 00:07:49]} {[%emt 00:01:47]} 20. fxe3 {[%clk
00:08:20]} {[%emt 00:00:12]} Nd4 {[%clk 00:07:38]} {[%emt 00:00:17]} 21. Qf2
{[%clk 00:06:34]} {[%emt 00:01:50]} a5 {[%clk 00:07:22]} {[%emt 00:00:22]} 22.
Kb1 {[%clk 00:06:28]} {[%emt 00:00:11]} Nxf3 {[%clk 00:06:29]} {[%emt
00:00:58]} 23. Bxf3 {[%clk 00:06:10]} {[%emt 00:00:22]} a4 {[%clk 00:04:05]}
{[%emt 00:02:30]} 24. bxa4 {[%clk 00:04:46]} {[%emt 00:01:28]} Rxa4 {[%clk
00:03:54]} {[%emt 00:00:17]} 25. e4 {[%clk 00:03:43]} {[%emt 00:01:08]} fxe4
{[%clk 00:02:42]} {[%emt 00:01:16]} 26. Qxc5 {[%clk 00:03:34]} {[%emt
00:00:14]} Bf4 {[%clk 00:02:35]} {[%emt 00:00:12]} 27. Bxe4 {[%clk 00:03:25]}
{[%emt 00:00:15]} Bg8 {[%clk 00:00:27]} {[%emt 00:02:13]} 28. Rdf1 {[%clk
00:03:05]} {[%emt 00:00:25]} Re8 {[%clk 00:00:29]} {[%emt 00:00:03]} 29. Rf3
{[%clk 00:02:02]} {[%emt 00:01:07]} Qf7 {[%clk 00:00:29]} {[%emt 00:00:06]} 30.
c4 {[%clk 00:01:46]} {[%emt 00:00:21]} Ra6 {[%clk 00:00:08]} {[%emt 00:00:26]}
31. Bd5 {[%clk 00:01:22]} {[%emt 00:00:28]} Qf5 {[%clk 00:00:08]} {[%emt
00:00:06]} 32. Rgf1 {[%clk 00:01:08]} {[%emt 00:00:19]} Rg6 {[%clk 00:00:06]}
{[%emt 00:00:07]} 33. Be4 {[%clk 00:01:07]} {[%emt 00:00:06]} Rc8 {[%clk
00:00:07]} {[%emt 00:00:04]} 34. Bxf5 {[%clk 00:01:06]} {[%emt 00:00:06]} Rxc5
{[%clk 00:00:11]} 35. Bxg6 {[%clk 00:01:09]} {[%emt 00:00:02]} 1-0

[Event "Open NK Rapid 2025 bord 26-50"]
[Site "Helmond, Netherlands"]
[Date "2025.05.03"]
[Round "7.16"]
[White "Ruzaykyn, Oleksandr"]
[Black "Jansz, Wilfred"]
[Result "1-0"]
[TimeControl "15 min +5 sec increment"]
[WhiteFideId "1058134"]
[BlackFideId "40107353"]
[WhiteElo "1827"]
[BlackElo "1996"]

1. Nf3 {[%clk 00:15:08]} Nf6 {[%clk 00:15:09]} {[%emt 00:00:02]} 2. d4 {[%clk
00:15:07]} {[%emt 00:00:07]} g6 {[%clk 00:15:09]} {[%emt 00:00:04]} 3. Bf4
{[%clk 00:14:55]} {[%emt 00:00:17]} Bg7 {[%clk 00:14:59]} {[%emt 00:00:15]} 4.
h3 {[%clk 00:14:42]} {[%emt 00:00:18]} O-O {[%clk 00:14:51]} {[%emt 00:00:13]}
5. e3 {[%clk 00:14:29]} {[%emt 00:00:17]} d6 {[%clk 00:14:51]} {[%emt
00:00:06]} 6. Be2 {[%clk 00:14:12]} {[%emt 00:00:21]} c6 {[%clk 00:14:52]}
{[%emt 00:00:05]} 7. c4 {[%clk 00:14:05]} {[%emt 00:00:12]} Nbd7 {[%clk
00:14:52]} {[%emt 00:00:05]} 8. Nc3 {[%clk 00:14:06]} {[%emt 00:00:04]} Re8
{[%clk 00:14:53]} {[%emt 00:00:04]} 9. O-O {[%clk 00:13:48]} {[%emt 00:00:23]}
e5 {[%emt 00:00:05]} 10. Bh2 {[%clk 00:13:32]} {[%emt 00:00:18]} e4 {[%clk
00:14:46]} {[%emt 00:00:15]} 11. Nd2 {[%clk 00:13:26]} {[%emt 00:00:11]} d5
{[%clk 00:14:49]} {[%emt 00:00:02]} 12. cxd5 {[%clk 00:13:14]} {[%emt
00:00:17]} cxd5 {[%clk 00:14:52]} {[%emt 00:00:02]} 13. Nb5 {[%clk 00:13:04]}
{[%emt 00:00:15]} Re7 {[%clk 00:12:30]} {[%emt 00:02:27]} 14. Bc7 {[%clk
00:12:35]} {[%emt 00:00:34]} Qf8 {[%clk 00:12:21]} {[%emt 00:00:14]} 15. Bd6
{[%clk 00:12:36]} {[%emt 00:00:04]} Ne8 {[%clk 00:12:24]} {[%emt 00:00:03]} 16.
Ba3 {[%clk 00:11:16]} {[%emt 00:01:24]} a6 {[%clk 00:11:58]} {[%emt 00:00:31]}
17. Nc3 {[%clk 00:11:19]} {[%emt 00:00:02]} Nef6 {[%clk 00:11:02]} {[%emt
00:01:01]} 18. Qb3 {[%clk 00:10:21]} {[%emt 00:01:03]} Qe8 {[%clk 00:09:55]}
{[%emt 00:01:13]} 19. Bxe7 {[%clk 00:10:03]} {[%emt 00:00:23]} Qxe7 {[%clk
00:09:55]} {[%emt 00:00:05]} 20. Nxd5 {[%clk 00:09:45]} {[%emt 00:00:23]} Nxd5
{[%clk 00:09:58]} {[%emt 00:00:02]} 21. Qxd5 {[%clk 00:09:48]} Nf6 {[%clk
00:09:59]} {[%emt 00:00:04]} 22. Qb3 {[%clk 00:08:58]} {[%emt 00:00:55]} Be6
{[%clk 00:09:58]} {[%emt 00:00:06]} 23. Bc4 {[%clk 00:08:37]} {[%emt 00:00:27]}
Bf5 {[%clk 00:09:13]} {[%emt 00:00:49]} 24. Rfe1 {[%clk 00:07:41]} {[%emt
00:01:01]} b5 {[%clk 00:09:05]} {[%emt 00:00:13]} 25. Bf1 {[%clk 00:07:37]}
{[%emt 00:00:09]} Be6 {[%clk 00:05:41]} {[%emt 00:03:30]} 26. Qd1 {[%clk
00:06:37]} {[%emt 00:01:03]} h5 {[%clk 00:04:45]} {[%emt 00:01:02]} 27. a4
{[%clk 00:05:31]} {[%emt 00:01:12]} b4 {[%clk 00:04:32]} {[%emt 00:00:18]} 28.
Bc4 {[%clk 00:04:48]} {[%emt 00:00:48]} Bf5 {[%clk 00:04:32]} {[%emt 00:00:05]}
29. a5 {[%clk 00:04:17]} {[%emt 00:00:36]} Nh7 {[%clk 00:04:27]} {[%emt
00:00:09]} 30. f3 {[%clk 00:03:50]} {[%emt 00:00:32]} Qg5 {[%clk 00:04:25]}
{[%emt 00:00:07]} 31. Nxe4 {[%clk 00:03:30]} {[%emt 00:00:25]} Bxe4 {[%clk
00:04:14]} {[%emt 00:00:16]} 32. fxe4 {[%clk 00:03:33]} {[%emt 00:00:02]} Qg3
{[%clk 00:03:44]} {[%emt 00:00:35]} 33. Qf3 {[%clk 00:03:30]} {[%emt 00:00:09]}
Qxf3 {[%clk 00:03:35]} {[%emt 00:00:14]} 34. gxf3 {[%clk 00:03:33]} Ng5 {[%clk
00:03:38]} {[%emt 00:00:02]} 35. Kg2 {[%clk 00:03:28]} {[%emt 00:00:10]} h4
{[%clk 00:03:07]} {[%emt 00:00:36]} 36. Bd5 {[%clk 00:03:11]} {[%emt 00:00:23]}
Rd8 {[%clk 00:02:44]} {[%emt 00:00:27]} 37. Rac1 {[%clk 00:03:10]} {[%emt
00:00:06]} Rd7 {[%clk 00:01:12]} {[%emt 00:01:38]} 38. Rc8+ {[%clk 00:02:58]}
{[%emt 00:00:17]} Bf8 {[%clk 00:01:15]} {[%emt 00:00:02]} 39. b3 {[%clk
00:02:35]} {[%emt 00:00:27]} Nh7 {[%clk 00:01:17]} {[%emt 00:00:03]} 40. Bc4
{[%clk 00:02:12]} {[%emt 00:00:28]} Ra7 {[%clk 00:01:00]} {[%emt 00:00:22]} 41.
Rc6 {[%clk 00:02:08]} {[%emt 00:00:09]} Kg7 {[%clk 00:00:45]} {[%emt 00:00:20]}
42. Rxa6 {[%clk 00:01:59]} {[%emt 00:00:14]} Rc7 {[%clk 00:00:40]} {[%emt
00:00:10]} 43. e5 {[%clk 00:01:54]} {[%emt 00:00:11]} Ng5 {[%clk 00:00:38]}
{[%emt 00:00:06]} 44. e4 {[%clk 00:01:44]} {[%emt 00:00:14]} Be7 {[%clk
00:00:24]} {[%emt 00:00:20]} 45. f4 {[%clk 00:01:46]} {[%emt 00:00:03]} Nh7
{[%clk 00:00:19]} {[%emt 00:00:10]} 46. d5 {[%clk 00:01:48]} {[%emt 00:00:04]}
Bc5 {[%clk 00:00:20]} {[%emt 00:00:03]} 47. Rc6 {[%clk 00:01:46]} {[%emt
00:00:07]} Rxc6 {[%clk 00:00:22]} {[%emt 00:00:03]} 48. dxc6 {[%clk 00:01:50]}
{[%emt 00:00:02]} 1-0

[Event "Open NK Rapid 2025 bord 26-50"]
[Site "Helmond, Netherlands"]
[Date "2025.05.03"]
[Round "7.17"]
[White "Elferink, Leon"]
[Black "Schleipfenbauer, Bent"]
[Result "1-0"]
[TimeControl "15 min +5 sec increment"]
[WhiteFideId "1086545"]
[BlackFideId "1048759"]
[WhiteElo "1822"]
[BlackElo "1992"]

1. e4 {[%clk 00:15:08]} {[%emt 00:00:02]} c5 {[%clk 00:15:10]} {[%emt
00:00:01]} 2. Nf3 {[%clk 00:15:12]} {[%emt 00:00:01]} Nc6 {[%clk 00:15:14]} 3.
Bb5 {[%clk 00:15:09]} {[%emt 00:00:06]} e6 {[%clk 00:15:18]} {[%emt 00:00:04]}
4. O-O {[%clk 00:15:06]} {[%emt 00:00:06]} Nge7 {[%clk 00:15:23]} {[%emt
00:00:01]} 5. Re1 {[%clk 00:15:09]} {[%emt 00:00:02]} a6 {[%clk 00:15:19]}
{[%emt 00:00:09]} 6. Bf1 {[%clk 00:15:11]} {[%emt 00:00:02]} Ng6 {[%emt
00:00:10]} 7. c3 {[%clk 00:15:08]} e5 {[%clk 00:13:52]} {[%emt 00:01:35]} 8. d4
{[%clk 00:15:05]} {[%emt 00:00:09]} d6 {[%clk 00:13:43]} {[%emt 00:00:14]} 9.
dxc5 {[%clk 00:14:09]} {[%emt 00:01:01]} dxc5 {[%clk 00:13:44]} {[%emt
00:00:04]} 10. Qxd8+ {[%clk 00:14:11]} {[%emt 00:00:02]} Nxd8 {[%clk 00:13:22]}
{[%emt 00:00:28]} 11. c4 {[%clk 00:13:34]} {[%emt 00:00:42]} Bg4 {[%clk
00:12:47]} {[%emt 00:00:40]} 12. Nc3 {[%clk 00:13:24]} {[%emt 00:00:15]} Nc6
{[%clk 00:11:42]} {[%emt 00:01:10]} 13. Nd5 {[%clk 00:13:09]} {[%emt 00:00:20]}
Bd6 {[%clk 00:10:18]} {[%emt 00:01:28]} 14. Be3 {[%clk 00:13:00]} {[%emt
00:00:14]} Bxf3 {[%clk 00:10:19]} {[%emt 00:00:05]} 15. gxf3 {[%clk 00:13:04]}
{[%emt 00:00:02]} Nd4 {[%clk 00:09:56]} {[%emt 00:00:27]} 16. Bxd4 {[%clk
00:13:06]} {[%emt 00:00:02]} cxd4 {[%clk 00:09:36]} {[%emt 00:00:25]} 17. b4
{[%clk 00:12:54]} {[%emt 00:00:18]} Rc8 {[%clk 00:07:40]} {[%emt 00:02:01]} 18.
c5 {[%clk 00:12:50]} {[%emt 00:00:09]} Bb8 {[%clk 00:06:58]} {[%emt 00:00:46]}
19. Bh3 {[%clk 00:11:24]} {[%emt 00:01:31]} Rd8 {[%clk 00:04:28]} {[%emt
00:02:36]} 20. a4 {[%clk 00:11:15]} {[%emt 00:00:15]} Nf4 {[%clk 00:03:47]}
{[%emt 00:00:46]} 21. Nxf4 {[%clk 00:11:14]} {[%emt 00:00:05]} exf4 {[%clk
00:03:50]} 22. e5 {[%emt 00:01:35]} Rd5 {[%clk 00:03:15]} 23. e6 {[%clk
00:10:17]} {[%emt 00:00:14]} f5 {[%clk 00:01:47]} {[%emt 00:01:33]} 24. e7
{[%clk 00:09:25]} {[%emt 00:00:56]} Kf7 {[%clk 00:01:01]} {[%emt 00:00:51]} 25.
Bf1 {[%clk 00:09:18]} {[%emt 00:00:12]} Re5 {[%clk 00:00:45]} {[%emt 00:00:21]}
26. Rxe5 {[%clk 00:09:02]} {[%emt 00:00:23]} Bxe5 {[%clk 00:00:49]} 27. Re1
{[%clk 00:08:52]} {[%emt 00:00:14]} Kf6 {[%clk 00:00:39]} {[%emt 00:00:16]} 28.
b5 {[%clk 00:08:44]} {[%emt 00:00:13]} a5 {[%clk 00:00:44]} 29. Bc4 {[%clk
00:08:04]} {[%emt 00:00:45]} Re8 {[%clk 00:00:45]} {[%emt 00:00:04]} 30. Bd5
{[%clk 00:07:57]} {[%emt 00:00:12]} b6 {[%clk 00:00:48]} {[%emt 00:00:01]} 31.
cxb6 {[%clk 00:07:46]} {[%emt 00:00:17]} Rxe7 {[%clk 00:00:51]} {[%emt
00:00:02]} 32. Rc1 {[%clk 00:07:30]} {[%emt 00:00:20]} Rd7 {[%clk 00:00:13]}
{[%emt 00:00:43]} 33. Rc6+ {[%clk 00:07:03]} {[%emt 00:00:33]} Rd6 {[%clk
00:00:12]} {[%emt 00:00:05]} 34. Bb3 {[%clk 00:06:15]} {[%emt 00:00:53]} d3
{[%clk 00:00:09]} {[%emt 00:00:08]} 35. Kf1 {[%clk 00:06:11]} {[%emt 00:00:09]}
Ke7 {[%clk 00:00:06]} {[%emt 00:00:08]} 36. Rc5 {[%clk 00:05:39]} {[%emt
00:00:37]} Bd4 {[%clk 00:00:08]} {[%emt 00:00:03]} 37. b7 {[%clk 00:05:29]}
{[%emt 00:00:15]} Rd8 {[%clk 00:00:06]} {[%emt 00:00:07]} 38. Rc7+ {[%clk
00:05:23]} {[%emt 00:00:12]} Kf8 {[%clk 00:00:08]} {[%emt 00:00:02]} 39. Rc8
{[%clk 00:05:21]} {[%emt 00:00:07]} 1-0

[Event "Open NK Rapid 2025 bord 26-50"]
[Site "Helmond, Netherlands"]
[Date "2025.05.03"]
[Round "7.18"]
[White "Hollands, Maxim"]
[Black "Kaufmann, Thomas"]
[Result "0-1"]
[TimeControl "15 min +5 sec increment"]
[WhiteFideId "1042335"]
[BlackFideId "1084941"]
[WhiteElo "1814"]
[BlackElo "1939"]

1. d4 {[%clk 00:15:08]} {[%emt 00:00:03]} Nf6 {[%clk 00:15:08]} {[%emt
00:00:02]} 2. c4 {[%clk 00:15:11]} {[%emt 00:00:01]} g6 {[%clk 00:15:09]}
{[%emt 00:00:04]} 3. Nc3 {[%clk 00:15:10]} {[%emt 00:00:06]} Bg7 {[%clk
00:15:12]} {[%emt 00:00:02]} 4. e4 {[%clk 00:15:12]} {[%emt 00:00:03]} d6
{[%clk 00:15:16]} {[%emt 00:00:01]} 5. Be2 {[%clk 00:15:15]} {[%emt 00:00:02]}
O-O {[%clk 00:15:18]} {[%emt 00:00:04]} 6. Bg5 {[%clk 00:15:18]} {[%emt
00:00:02]} c5 {[%clk 00:15:04]} {[%emt 00:00:19]} 7. d5 {[%clk 00:15:17]}
{[%emt 00:00:05]} h6 {[%clk 00:15:04]} {[%emt 00:00:05]} 8. Bh4 {[%clk
00:15:16]} {[%emt 00:00:07]} Qa5 {[%clk 00:14:34]} {[%emt 00:00:34]} 9. Qd2
{[%clk 00:14:57]} {[%emt 00:00:24]} e6 {[%clk 00:14:04]} {[%emt 00:00:35]} 10.
Nf3 {[%clk 00:13:20]} {[%emt 00:01:43]} exd5 {[%clk 00:13:53]} {[%emt
00:00:16]} 11. Nxd5 {[%clk 00:12:35]} {[%emt 00:00:49]} Qxd2+ {[%clk 00:13:43]}
{[%emt 00:00:15]} 12. Nxd2 {[%clk 00:12:37]} {[%emt 00:00:04]} Nxd5 {[%clk
00:13:41]} {[%emt 00:00:07]} 13. cxd5 {[%clk 00:12:22]} {[%emt 00:00:19]} Bxb2
{[%clk 00:12:44]} {[%emt 00:01:02]} 14. Rb1 {[%clk 00:12:00]} {[%emt 00:00:28]}
Bc3 {[%clk 00:12:36]} {[%emt 00:00:13]} 15. Be7 {[%clk 00:11:53]} {[%emt
00:00:11]} Re8 {[%clk 00:11:49]} {[%emt 00:00:52]} 16. Bxd6 {[%clk 00:11:43]}
{[%emt 00:00:16]} Nd7 {[%clk 00:11:07]} {[%emt 00:00:46]} 17. f3 {[%clk
00:10:21]} {[%emt 00:01:27]} f5 {[%clk 00:10:55]} {[%emt 00:00:18]} 18. exf5
{[%clk 00:09:30]} {[%emt 00:00:55]} gxf5 {[%clk 00:09:57]} {[%emt 00:01:03]} 19.
Rb3 {[%clk 00:08:43]} {[%emt 00:00:53]} Bd4 {[%clk 00:09:24]} {[%emt 00:00:38]}
20. Nc4 {[%clk 00:08:09]} {[%emt 00:00:38]} b6 {[%clk 00:08:29]} {[%emt
00:01:00]} 21. Bf4 {[%clk 00:07:43]} {[%emt 00:00:31]} Ba6 {[%clk 00:08:22]}
{[%emt 00:00:13]} 22. Ne3 {[%clk 00:06:55]} {[%emt 00:00:53]} Bxe2 {[%clk
00:06:39]} {[%emt 00:01:47]} 23. Kxe2 {[%clk 00:06:59]} {[%emt 00:00:01]} Nf6
{[%clk 00:06:12]} {[%emt 00:00:33]} 24. Kd2 {[%clk 00:06:33]} {[%emt 00:00:30]}
Bxe3+ {[%clk 00:05:57]} {[%emt 00:00:21]} 25. Rxe3 {[%clk 00:06:19]} {[%emt
00:00:19]} h5 {[%clk 00:05:27]} {[%emt 00:00:34]} 26. Rxe8+ {[%clk 00:05:10]}
{[%emt 00:01:14]} Rxe8 {[%clk 00:05:29]} {[%emt 00:00:03]} 27. d6 {[%clk
00:05:13]} {[%emt 00:00:02]} Rd8 {[%clk 00:04:42]} {[%emt 00:00:52]} 28. Kc2
{[%clk 00:04:37]} {[%emt 00:00:41]} Nd5 {[%clk 00:04:42]} {[%emt 00:00:06]} 29.
Be5 {[%clk 00:04:40]} {[%emt 00:00:02]} Kf7 {[%clk 00:04:36]} {[%emt 00:00:11]}
30. f4 {[%clk 00:04:30]} {[%emt 00:00:15]} Ke6 {[%clk 00:04:12]} {[%emt
00:00:29]} 31. a4 {[%clk 00:03:44]} {[%emt 00:00:51]} Rg8 {[%clk 00:04:06]}
{[%emt 00:00:11]} 32. g3 {[%clk 00:03:30]} {[%emt 00:00:19]} Ne3+ {[%clk
00:03:12]} {[%emt 00:00:58]} 33. Kb3 {[%clk 00:02:34]} {[%emt 00:01:02]} Ng4
{[%clk 00:02:58]} {[%emt 00:00:19]} 34. Rd1 {[%clk 00:01:59]} {[%emt 00:00:38]}
Nxe5 {[%clk 00:02:34]} {[%emt 00:00:31]} 35. Re1 {[%clk 00:01:40]} {[%emt
00:00:24]} Kxd6 {[%clk 00:02:29]} {[%emt 00:00:10]} 36. Rxe5 {[%clk 00:01:43]}
{[%emt 00:00:02]} Rf8 {[%clk 00:02:19]} {[%emt 00:00:15]} 37. Kc4 {[%clk
00:01:46]} {[%emt 00:00:03]} a6 {[%clk 00:02:21]} {[%emt 00:00:03]} 38. Rd5+
{[%clk 00:01:41]} {[%emt 00:00:09]} Kc6 {[%clk 00:02:19]} {[%emt 00:00:07]} 39.
Re5 {[%clk 00:01:43]} {[%emt 00:00:03]} b5+ {[%clk 00:02:18]} {[%emt 00:00:05]}
40. Kb3 {[%clk 00:01:35]} {[%emt 00:00:13]} Rf6 {[%clk 00:02:16]} {[%emt
00:00:07]} 41. Re8 {[%clk 00:01:35]} {[%emt 00:00:05]} Rd6 {[%clk 00:02:04]}
{[%emt 00:00:18]} 42. axb5+ {[%clk 00:01:20]} {[%emt 00:00:20]} axb5 {[%clk
00:02:06]} {[%emt 00:00:02]} 43. Rc8+ {[%clk 00:01:13]} {[%emt 00:00:11]} Kd5
{[%clk 00:02:08]} {[%emt 00:00:04]} 44. Rh8 {[%clk 00:01:11]} {[%emt 00:00:07]}
Ke4 {[%clk 00:02:07]} {[%emt 00:00:07]} 45. Rxh5 {[%clk 00:01:06]} {[%emt
00:00:10]} Rc6 {[%clk 00:01:44]} {[%emt 00:00:28]} 46. Kc3 {[%clk 00:00:55]}
{[%emt 00:00:15]} c4 {[%clk 00:01:45]} {[%emt 00:00:05]} 47. Rh8 {[%clk
00:00:55]} {[%emt 00:00:05]} b4+ {[%clk 00:01:37]} {[%emt 00:00:13]} 48. Kxb4
{[%clk 00:00:38]} {[%emt 00:00:21]} c3 {[%clk 00:01:40]} {[%emt 00:00:02]} 49.
Re8 {[%clk 00:00:41]} {[%emt 00:00:01]} Kd3 {[%clk 00:01:32]} {[%emt 00:00:14]}
50. Rd8+ {[%clk 00:00:35]} {[%emt 00:00:11]} Ke2 {[%clk 00:01:21]} {[%emt
00:00:16]} 51. Re8+ {[%clk 00:00:19]} {[%emt 00:00:22]} Kf2 {[%clk 00:01:24]}
52. Ra8 {[%clk 00:00:16]} {[%emt 00:00:08]} c2 {[%clk 00:01:22]} {[%emt
00:00:07]} 53. Ra2 {[%clk 00:00:19]} {[%emt 00:00:02]} Kf3 {[%clk 00:01:20]}
{[%emt 00:00:07]} 0-1